bitfinex-derivatives/quotes_SOLF0:USTF0_20260218
["timestamp","ask_amount","ask_price","bid_price","bid_amount"]
[1771395044077,451.03263771,85.039,84.957,31.32585812]
[1771395044279,10.92180518,85.035,84.916,31.32585812]
[1771395044779,10.92180518,85.036,84.916,31.32585812]
[1771395045078,10.92180518,85.036,84.943,31.3191329]
[1771395045282,8.49020907,85.037,84.943,31.3191329]
[1771395046279,10.5938,85.002,84.947,31.31901539]
[1771395046475,8.49020907,85.037,84.947,31.31901539]
[1771395046783,84.6,85.036,84.947,31.31901539]
[1771395047079,8.49020907,85.035,84.947,31.31901539]
[1771395047680,10.5928,85.01,84.953,31.32197782]
[1771395047880,84.78,85.009,84.953,31.32197782]
[1771395048675,10.5934,85.006,84.953,31.32197782]
[1771395051679,10.5934,85.006,84.955,31.3223162]
[1771395054383,85.16,85.012,84.96,31.30576161]
[1771395054988,85.16,85.012,84.962,31.30576161]
[1771395055396,10.5922,85.015,84.962,31.30576161]
[1771395056686,10.5922,85.015,84.964,31.30545026]
[1771395060181,10.5912,85.023,84.971,31.30546723]
[1771395060381,451.03263771,85.039,84.971,31.30546723]
[1771395060583,85.42,85.038,84.971,31.30546723]
[1771395060988,451.03263771,85.039,84.971,31.30546723]
[1771395061291,94.10016386,85.038,84.971,31.30546723]
[1771395061477,10.5911,85.024,84.973,31.30096733]
[1771395062883,10.592,85.017,84.973,31.30096733]
[1771395073293,10.592,85.017,84.975,31.28429023]
[1771395076400,96.0307,85.027,84.98,31.28848657]
[1771395077001,10.5907,85.027,84.985,31.28807796]
[1771395078002,85.72,85.034,84.985,31.28807796]
[1771395079299,10.5899,85.033,84.985,31.28807796]
[1771395083900,10.5902,85.031,84.985,31.28807796]
[1771395099322,8.53911485,85.03,84.975,31.29963466]
[1771395099522,96.32,85.029,84.975,31.29963466]
[1771395100325,96.44,85.028,84.975,31.29963466]
[1771395100623,451.03263771,85.039,84.975,31.29963466]
[1771395100624,96.44,85.027,84.975,31.29963466]
[1771395100825,10.5923,85.014,84.975,31.29963466]
[1771395101027,96.46,85.013,84.975,31.29963466]
[1771395105625,96.7,85.017,84.975,31.29963466]
[1771395106826,10.5922,85.015,84.975,31.29963466]
[1771395120040,10.5912,85.023,84.975,31.29963466]
[1771395122338,10.592,85.016,84.975,31.29963466]
[1771395122643,8.54925096,85.023,84.975,31.29963466]
[1771395122845,8.54925096,85.022,84.954,31.29187013]
[1771395123042,106.06925096,85.021,84.954,31.29187013]
[1771395123241,8.54925096,85.02,84.954,31.29187013]
[1771395123445,8.54925096,85.019,84.954,31.29187013]
[1771395123638,10.5939,85.001,84.954,31.29187013]
[1771395123840,472.21103771,85.039,84.954,31.29187013]
[1771395123841,8.54925096,85.02,84.954,31.29187013]
[1771395124149,97.52,85.034,84.964,53.2512179]
[1771395124338,8.54925096,85.033,84.965,31.29187013]
[1771395124642,10.5918,85.018,84.974,31.28027602]
[1771395130553,10.5904,85.03,84.977,31.23457551]
[1771395131552,10.5912,85.023,84.977,31.23457551]
[1771395140148,10.5921,85.016,84.977,31.23457551]
[1771395157063,8.54780082,85.03,84.961,31.23791904]
[1771395157264,8.54780082,85.029,84.961,31.23791904]
[1771395157465,8.54780082,85.028,84.961,31.23791904]
[1771395157666,8.54780082,85.027,84.961,31.23791904]
[1771395157867,104.78780082,85.026,84.961,31.23791904]
[1771395158164,8.54780082,85.025,84.961,31.23791904]
[1771395158366,8.54780082,85.024,84.961,31.23791904]
[1771395158564,8.54780082,85.023,84.961,31.23791904]
[1771395158765,10.5928,85.01,84.961,31.23791904]
[1771395162466,10.5918,85.019,84.965,31.23726009]
[1771395163763,10.5918,85.019,84.967,31.23726009]
[1771395166468,10.5904,85.03,84.971,21.95934777]
[1771395166667,10.5904,85.03,84.973,31.23752008]
[1771395166868,10.5904,85.03,84.974,31.23752008]
[1771395167770,10.5904,85.03,84.977,31.23752008]
[1771395172880,10.5904,85.03,84.979,31.25380223]
[1771395175488,10.5904,85.03,84.972,21.95934777]
[1771395175489,10.5904,85.03,84.982,31.24816039]
[1771395176788,10.5904,85.03,84.984,31.24791899]
[1771395186292,10.5893,85.038,84.986,31.26609371]
[1771395190593,8.55173263,85.06,84.986,31.26609371]
[1771395190790,32.77418959,85.082,84.994,31.26120993]
[1771395190791,8.55173263,85.075,84.994,31.26120993]
[1771395190995,8.55173263,85.074,84.994,31.26120993]
[1771395191298,8.55173263,85.073,84.994,31.26120993]
[1771395191498,8.55173263,85.072,84.994,31.26120993]
[1771395191699,10.5872,85.055,84.998,31.26120993]
[1771395194797,10.94578639,85.09,84.99,21.95934777]
[1771395194798,10.5849,85.074,85.015,31.26032497]
[1771395197601,10.5861,85.064,85.015,31.26032497]
[1771395200802,10.5851,85.072,85.016,31.26064684]
[1771395201695,10.5851,85.072,85.018,31.26064684]
[1771395203706,10.584,85.081,85.021,31.25632615]
[1771395204797,10.584,85.081,85.027,31.25788158]
[1771395205505,10.5852,85.071,85.027,31.25788158]
[1771395209700,21.1613,85.108,85.027,31.25788158]
[1771395209701,74.08,85.129,85.027,31.25788158]
[1771395209905,8.52856876,85.128,85.027,31.25788158]
[1771395210602,10.5825,85.093,85.04,31.2540342]
[1771395216909,10.5813,85.103,85.044,31.30473483]
[1771395217109,731.43075976,85.137,85.044,31.30473483]
[1771395217307,94.14,85.136,85.044,31.30473483]
[1771395217610,731.43075976,85.137,85.044,31.30473483]
[1771395218705,731.43075976,85.137,85.039,151.8]
[1771395218706,10.58,85.113,85.064,31.29165187]
[1771395218907,731.43075976,85.137,85.064,31.29165187]
[1771395219306,10.5771,85.136,85.091,31.29165187]
[1771395221314,731.43075976,85.137,85.091,31.29165187]
[1771395222305,731.43075976,85.137,85.102,31.35909773]
[1771395222510,10.5746,85.157,85.102,31.35909773]
[1771395223813,10.5746,85.157,85.105,31.34274596]
[1771395224409,10.5757,85.148,85.097,10.5818]
[1771395224610,97.0,85.147,85.097,10.5818]
[1771395225809,10.5759,85.146,85.097,41.90426662]
[1771395226409,10.5759,85.146,85.098,31.32246662]
[1771395233009,10.5748,85.155,85.104,31.32051149]
[1771395233313,97.4,85.154,85.104,31.32051149]
[1771395233516,97.42,85.153,85.104,31.32051149]
[1771395234119,11.60690922,85.181,85.104,31.32051149]
[1771395234317,97.44,85.18,85.104,31.32051149]
[1771395234518,8.45144731,85.179,85.104,31.32051149]
[1771395235911,10.5745,85.157,85.104,31.32051149]
[1771395236120,8.45144731,85.179,85.104,31.32051149]
[1771395237711,10.5754,85.15,85.104,31.32051149]
[1771395238018,98.34,85.149,85.104,31.32051149]
[1771395239317,10.5756,85.148,85.104,31.32051149]
[1771395241222,11.49686612,85.181,85.031,21.1803]
[1771395241421,10.89585622,85.174,85.045,31.31631414]
[1771395241621,10.89585622,85.172,85.045,31.31631414]
[1771395241826,10.89585622,85.172,85.031,21.1803]
[1771395241827,21.1461,85.169,85.069,31.31631414]
[1771395242727,21.1461,85.169,85.073,31.32737962]
[1771395243628,10.89585622,85.17,85.073,31.32737962]
[1771395243629,10.579,85.121,85.073,31.32737962]
[1771395243927,99.06,85.12,85.073,31.32737962]
[1771395244129,10.5801,85.112,85.045,31.32737962]
[1771395244327,98.06,85.111,85.045,31.32737962]
[1771395244629,98.06,85.111,85.063,31.3228229]
[1771395245726,98.06,85.111,85.066,31.3228229]
[1771395250225,10.5805,85.109,85.066,31.3228229]
[1771395251033,10.5805,85.109,85.054,31.32434953]
[1771395251228,10.5814,85.102,85.054,31.32434953]
[1771395251734,10.582,85.097,85.054,31.32434953]
[1771395255533,10.5829,85.089,85.042,31.31598702]
[1771395255730,10.5829,85.089,85.045,31.31598702]
[1771395258340,10.582,85.097,85.045,31.31598702]
[1771395261241,10.5828,85.09,85.045,31.31598702]
[1771395269348,10.5829,85.09,85.045,31.31598702]
[1771395273345,10.5843,85.079,85.045,31.31598702]
[1771395273545,56.4546,85.135,85.027,31.29960599]
[1771395273546,74.06,85.078,85.027,31.29960599]
[1771395274052,10.89585622,85.109,85.027,31.29960599]
[1771395274359,93.45851877,85.108,85.027,31.29960599]
[1771395274558,8.50266255,85.107,85.027,31.29960599]
[1771395275756,10.586,85.065,85.027,31.29960599]
[1771395275957,100.88,85.064,85.027,31.29960599]
[1771395276655,10.5867,85.059,85.027,31.29960599]
[1771395277047,10.89585622,85.109,85.027,31.29960599]
[1771395277247,10.89585622,85.109,85.029,31.30533715]
[1771395277248,10.5805,85.109,85.029,31.30533715]
[1771395277459,10.5805,85.109,85.031,31.30533715]
[1771395278560,74.06,85.113,85.041,31.26723495]
[1771395278561,10.5815,85.101,85.041,31.26723495]
[1771395279553,10.5825,85.093,85.041,31.26723495]
[1771395285561,10.5825,85.093,85.043,10.5886]
[1771395285760,10.5825,85.093,85.044,31.2773629]
[1771395288260,10.5825,85.093,85.045,10.5884]
[1771395288467,10.5825,85.093,85.046,31.27710629]
[1771395289169,74.06,85.098,85.046,31.27710629]
[1771395292170,74.06,85.098,85.048,31.27457514]
[1771395300375,10.5814,85.102,85.056,31.27261618]
[1771395300775,10.5814,85.102,85.057,31.24482546]
[1771395301575,10.98578282,85.128,85.042,14.57110878]
[1771395301781,10.98578282,85.114,85.032,31.24482546]
[1771395302176,10.5851,85.072,85.032,31.24482546]
[1771395302383,74.06,85.085,85.023,14.57110878]
[1771395302585,74.06,85.084,85.021,31.24482546]
[1771395303680,10.5864,85.062,85.021,31.24482546]
[1771395305779,10.5849,85.074,85.021,31.24482546]
[1771395306177,10.5837,85.083,85.025,31.26824821]
[1771395309791,10.5848,85.074,85.025,31.26824821]
[1771395314201,10.5838,85.082,85.026,10.5907]
[1771395314398,74.06,85.112,85.027,31.26890585]
[1771395314598,8.49821792,85.111,85.027,31.26890585]
[1771395314901,8.49821792,85.117,85.027,31.26890585]
[1771395315104,8.49821792,85.117,85.022,21.95934777]
[1771395315404,109.77821792,85.116,85.023,31.26617209]
[1771395315702,164.5413,85.132,85.023,31.26617209]
[1771395315703,10.98578282,85.108,85.023,31.26617209]
[1771395316004,8.49821792,85.107,85.023,31.26617209]
[1771395316199,8.49821792,85.106,85.023,31.26617209]
[1771395316404,109.87821792,85.105,85.023,31.26617209]
[1771395316606,8.49821792,85.104,85.023,31.26617209]
[1771395316801,101.38,85.105,85.023,31.26617209]
[1771395316802,10.5848,85.075,85.023,31.26617209]
[1771395318700,10.5848,85.075,85.024,31.31955596]
[1771395322804,10.5848,85.075,85.026,31.30028555]
[1771395328306,10.5837,85.083,85.028,31.29742161]
[1771395331210,10.5837,85.083,85.035,31.30242487]
[1771395331417,10.5827,85.091,85.035,31.30242487]
[1771395332715,10.5827,85.091,85.037,31.29890045]
[1771395338217,8.50443205,85.109,85.041,31.28851431]
[1771395338518,8.50443205,85.134,85.046,31.28851431]
[1771395338712,8.50443205,85.133,85.047,31.27972121]
[1771395338910,8.50443205,85.132,85.047,31.27972121]
[1771395339112,8.50443205,85.131,85.047,31.27972121]
[1771395339423,8.50443205,85.135,85.063,31.27972121]
[1771395339714,8.50443205,85.15,85.063,31.27972121]
[1771395339919,10.98578282,85.144,85.063,31.27972121]
[1771395340120,8.50443205,85.143,85.063,31.27972121]
[1771395340320,8.50443205,85.142,85.064,31.27972121]
[1771395340516,108.86443205,85.141,85.064,31.27972121]
[1771395340824,10.98578282,85.153,85.064,31.27972121]
[1771395340825,8.50443205,85.14,85.064,31.27972121]
[1771395341028,100.38,85.146,85.064,31.27972121]
[1771395341222,8.50443205,85.145,85.064,31.27972121]
[1771395341523,8.50443205,85.145,85.048,21.95934777]
[1771395341524,10.5784,85.126,85.074,31.23072912]
[1771395342222,8.50443205,85.145,85.081,31.23072912]
[1771395342523,76.34,85.161,85.081,31.23072912]
[1771395342716,8.49288673,85.16,85.081,31.23072912]
[1771395342917,10.5769,85.138,85.083,31.23262999]
[1771395344722,10.5769,85.138,85.085,31.2464382]
[1771395345616,10.5769,85.138,85.087,31.24660683]
[1771395347823,10.5769,85.138,85.089,31.248482]
[1771395351824,10.5757,85.147,85.091,31.25034602]
[1771395352727,10.5757,85.147,85.095,31.24992387]
[1771395357033,10.5769,85.138,85.095,31.24992387]
[1771395357334,74.02,85.16,85.095,31.24992387]
[1771395357831,10.5765,85.141,85.095,31.24992387]
[1771395358022,8.4601576,85.159,85.075,31.25017371]
[1771395358221,99.7,85.158,85.075,31.25017371]
[1771395358426,8.4601576,85.157,85.075,31.25017371]
[1771395359019,10.5793,85.119,85.075,31.25017371]
[1771395359319,74.02,85.129,85.075,31.25017371]
[1771395359726,35.3,85.156,85.063,31.25110681]
[1771395359926,146.27485474,85.155,85.063,31.25110681]
[1771395360226,10.95485474,85.151,85.063,31.25110681]
[1771395360525,21.152,85.145,85.063,31.25110681]
[1771395361333,100.3,85.144,85.063,31.25110681]
[1771395361630,8.46417662,85.143,85.063,31.25110681]
[1771395362229,21.1527,85.142,85.038,31.26163568]
[1771395362619,74.02,85.141,85.038,31.26163568]
[1771395362822,8.46417662,85.14,85.038,31.26163568]
[1771395363624,88.16,85.139,85.038,31.26163568]
[1771395363823,10.5802,85.112,85.048,10.588]
[1771395364023,10.5802,85.112,85.049,31.27037204]
[1771395364222,10.5802,85.112,85.05,10.5877]
[1771395364422,10.5802,85.112,85.051,31.27037204]
[1771395365728,10.5802,85.112,85.055,31.26510013]
[1771395372237,10.5802,85.112,85.061,31.24733564]
[1771395379248,10.5802,85.112,85.063,31.22598507]
[1771395379647,10.5791,85.12,85.063,31.22598507]
[1771395380744,10.5791,85.12,85.068,31.22091022]
[1771395391449,10.5791,85.12,85.07,31.2216922]
[1771395391842,10.5809,85.106,85.07,31.2216922]
[1771395392444,10.5799,85.114,85.07,31.2216922]
[1771395400149,10.5785,85.125,85.072,31.22463591]
[1771395402062,10.5785,85.125,85.074,31.23356185]
[1771395404567,10.5785,85.125,85.076,31.23046714]
[1771395405071,8.50176303,85.134,85.079,31.22321532]
[1771395406164,8.50176303,85.133,85.079,31.22321532]
[1771395406468,8.50176303,85.132,85.055,31.22281788]
[1771395406664,8.50176303,85.131,85.055,31.22281788]
[1771395406969,8.50176303,85.13,85.055,31.22281788]
[1771395407270,8.50176303,85.129,85.055,31.22281788]
[1771395407464,8.50176303,85.128,85.055,31.22281788]
[1771395407671,10.5804,85.11,85.055,41.80981788]
[1771395407865,10.5804,85.11,85.056,31.22239314]
[1771395408772,10.5804,85.11,85.06,31.22591248]
[1771395408974,10.5813,85.103,85.06,31.22591248]
[1771395409669,10.58,85.113,85.062,31.22571996]
[1771395413376,10.58,85.113,85.064,31.22064526]
[1771395416577,10.58,85.113,85.053,21.95934777]
[1771395416578,10.58,85.113,85.066,31.21732575]
[1771395416977,10.5789,85.122,85.066,31.21732575]
[1771395417178,8.63451383,85.121,85.069,31.21732575]
[1771395417378,8.63451383,85.12,85.069,31.21732575]
[1771395417578,8.63451383,85.119,85.069,31.21732575]
[1771395417778,8.63451383,85.118,85.069,31.21732575]
[1771395418078,8.63451383,85.117,85.069,31.21732575]
[1771395418279,10.95485474,85.137,85.069,31.21732575]
[1771395418482,8.63458711,85.136,85.069,31.21732575]
[1771395418680,10.5792,85.12,85.069,31.21732575]
[1771395432395,10.58,85.113,85.069,31.21732575]
[1771395432697,10.95485474,85.132,85.059,31.21100047]
[1771395432889,8.63455208,85.131,85.059,31.21100047]
[1771395433086,8.63455208,85.13,85.059,31.21100047]
[1771395433390,8.63455208,85.129,85.059,31.21100047]
[1771395433589,10.95485474,85.133,85.059,31.21100047]
[1771395433590,10.5821,85.096,85.059,31.21100047]
[1771395433894,10.5821,85.096,85.005,36.70630118]
[1771395433895,8.59953802,85.095,85.029,31.21085068]
[1771395434190,8.59953802,85.094,85.029,31.21085068]
[1771395434394,74.04,85.108,85.029,31.21085068]
[1771395434590,8.59400688,85.107,85.029,31.21085068]
[1771395434895,74.04,85.108,85.029,31.21085068]
[1771395434896,8.59400688,85.106,85.029,31.21085068]
[1771395435086,8.59400688,85.105,85.029,31.21085068]
[1771395435289,8.59400688,85.104,85.029,31.21085068]
[1771395435486,8.59400688,85.103,85.029,31.21085068]
[1771395435689,10.5844,85.078,85.029,31.21085068]
[1771395439190,10.5833,85.086,85.029,31.21085068]
[1771395439391,10.5833,85.086,85.032,31.23827511]
[1771395445806,10.5843,85.079,85.032,31.23827511]
[1771395455202,10.5851,85.072,85.032,31.23827511]
[1771395468017,10.5841,85.08,85.032,31.23827511]
[1771395469925,10.5841,85.08,85.034,31.26068068]
[1771395479333,10.5831,85.088,85.037,31.26237464]
[1771395479634,8.55710182,85.087,85.037,31.26237464]
[1771395479831,10.5836,85.084,85.038,10.5892]
[1771395480035,10.5836,85.084,85.039,31.26230389]
[1771395491236,95.3,85.103,85.012,447.57115273]
[1771395491237,8.62053826,85.083,85.012,447.57115273]
[1771395491441,10.95221524,85.079,85.016,31.26234586]
[1771395491648,114.7327535,85.078,85.016,31.26234586]
[1771395491845,8.62053826,85.077,85.016,31.26234586]
[1771395492046,8.62053826,85.076,85.016,31.26234586]
[1771395492250,8.62053826,85.075,85.016,31.26234586]
[1771395492447,8.62053826,85.074,85.016,31.26234586]
[1771395492641,10.5874,85.053,85.016,31.26234586]
[1771395496444,10.5885,85.044,85.005,31.25702763]
[1771395496645,10.5885,85.044,84.995,31.25702763]
[1771395497654,10.5897,85.035,84.995,31.25702763]
[1771395505660,74.06,85.055,84.995,31.25702763]
[1771395506657,10.5894,85.037,84.995,31.25702763]
[1771395507057,74.06,85.055,84.995,31.25702763]
[1771395507259,21.1679,85.081,84.995,31.25702763]
[1771395507454,90.8,85.054,84.995,31.25702763]
[1771395509350,10.5906,85.028,84.995,31.25702763]
[1771395509758,10.5916,85.02,84.995,31.25702763]
[1771395513559,10.5928,85.01,84.985,31.24205948]
[1771395514062,10.5941,85.0,84.985,31.24205948]
[1771395517658,10.5941,85.0,84.985,13.40155948]
[1771395518865,10.5941,85.0,84.985,5.948e-05]
[1771395519455,21.1775,85.043,84.985,5.948e-05]
[1771395519870,94.42,85.042,84.985,5.948e-05]
[1771395520767,10.5927,85.011,84.985,5.948e-05]
[1771395520970,94.42,85.042,84.985,5.948e-05]
[1771395521970,3.98783871,85.041,84.985,5.948e-05]
[1771395522670,10.5927,85.011,84.985,5.948e-05]
[1771395558596,15.15535879,85.011,84.985,5.948e-05]
[1771395570906,15.15535879,85.011,84.951,452.9799628]
[1771395570907,4.56265879,85.053,84.977,4.53632018]
[1771395571115,4.56265879,85.051,84.977,4.53632018]
[1771395571410,4.56265879,85.049,84.977,4.53632018]
[1771395571606,4.56265879,85.047,84.977,4.53632018]
[1771395571811,4.56265879,85.028,84.981,4.53632018]
[1771395572206,4.56265879,85.028,84.981,149.27632018]
[1771395572402,4.56265879,85.028,84.982,4.53632018]
[1771395573714,4.56265879,85.028,84.989,10.5953]
[1771395574915,4.56265879,85.028,84.972,4.53632018]
[1771395575716,4.56265879,85.016,84.973,4.53632018]
[1771395576804,4.56265879,85.014,84.973,4.53632018]
[1771395577205,4.56265879,85.014,84.974,15.13352018]
[1771395581020,4.56265879,85.014,84.975,4.53632018]
[1771395589822,4.56265879,85.014,84.976,10.597]
[1771395590125,4.56265879,85.014,84.977,5.32166997]
[1771395603430,5.37009668,85.011,84.977,5.32166997]
[1771395613838,5.37009668,85.02,84.984,4.98880841]
[1771395614039,5.37009668,85.02,84.968,4.98880841]
[1771395614340,5.37009668,85.02,84.919,35.3]
[1771395614341,5.37009668,85.009,84.962,10.5987]
[1771395615743,5.47701886,85.006,84.962,10.5987]
[1771395616239,5.47701886,85.006,84.964,15.89108548]
[1771395620546,5.47701886,85.006,84.965,5.29258548]
[1771395625447,5.47701886,85.006,84.967,5.29258548]
[1771395625642,5.47701886,85.006,84.969,5.29258548]
[1771395647079,5.57784374,85.015,84.974,5.27088158]
[1771395648681,5.57784374,85.015,84.976,5.27088158]
[1771395656684,5.57784374,85.015,84.934,35.3]
[1771395656685,5.57784374,85.015,84.963,5.74988549]
[1771395657278,5.57784374,85.015,84.967,16.34798549]
[1771395657585,5.57784374,85.015,84.968,5.74988549]
[1771395658684,5.57784374,85.015,84.969,10.5978]
[1771395660879,5.57784374,85.015,84.97,5.74988549]
[1771395661679,5.42751397,85.01,84.961,464.78580602]
[1771395662785,5.42751397,85.008,84.961,464.78580602]
[1771395663489,5.42751397,85.006,84.961,464.78580602]
[1771395664189,5.42751397,85.006,84.945,154.3]
[1771395664190,5.42751397,85.002,84.942,5.74988549]
[1771395664390,5.42751397,85.0,84.942,5.74988549]
[1771395664588,5.42751397,84.998,84.932,5.74988549]
[1771395664788,5.42751397,84.996,84.932,5.74988549]
[1771395664994,5.42751397,84.994,84.932,5.74988549]
[1771395665193,5.42751397,84.992,84.932,5.74988549]
[1771395665492,5.42751397,84.99,84.932,5.74988549]
[1771395665693,5.42751397,84.982,84.933,5.74988549]
[1771395672887,5.42751397,84.98,84.933,5.74988549]
[1771395681605,5.42751397,84.98,84.936,5.40789839]
[1771395703732,10.5954,84.989,84.944,5.40789839]
[1771395703927,16.0907331,84.989,84.944,5.40789839]
[1771395704728,16.0907331,84.989,84.947,5.52514289]
[1771395707127,5.68042641,84.988,84.947,5.52514289]
[1771395716036,5.68042641,84.988,84.957,5.62814342]
[1771395716336,340.33418995,85.045,84.957,5.62814342]
[1771395716337,5.80488103,84.997,84.957,5.62814342]
[1771395716638,5.80488103,84.987,84.951,158.1]
[1771395717734,5.80488103,84.984,84.951,158.1]
[1771395722844,5.80488103,84.984,84.951,163.72814342]
[1771395728049,5.80488103,84.984,84.952,5.62814342]
[1771395731454,5.80488103,84.982,84.942,5.62814342]
[1771395731660,5.80488103,84.982,84.944,5.62814342]
[1771395746972,5.48678841,84.992,84.948,5.72497715]
[1771395747170,10.5945,84.997,84.948,5.72497715]
[1771395747877,5.48678841,84.996,84.948,5.72497715]
[1771395748666,5.48678841,84.996,84.95,5.72497715]
[1771395749572,16.08158841,84.994,84.95,5.72497715]
[1771395750968,97.80295895,85.019,84.953,5.72497715]
[1771395750969,5.48678841,85.019,84.953,5.72497715]
[1771395751175,5.48678841,85.019,84.957,5.72497715]
[1771395751881,5.48678841,85.019,84.971,5.72497715]
[1771395752081,5.48678841,85.019,84.973,5.72497715]
[1771395752673,10.5918,85.018,84.975,5.72497715]
[1771395753075,16.07858841,85.018,84.975,5.72497715]
[1771395753382,5.48678841,85.017,84.975,5.72497715]
[1771395753785,5.48678841,85.013,84.949,21.9086817]
[1771395754087,5.48678841,85.013,84.951,5.72497715]
[1771395755381,5.48678841,85.009,84.96,5.72497715]
[1771395756685,5.48678841,85.009,84.963,10.5986]
[1771395756987,5.48678841,85.009,84.964,5.72497715]
[1771395761095,5.48678841,85.02,84.969,5.72497715]
[1771395762087,5.48678841,85.02,84.97,174.16]
[1771395762286,5.48678841,85.044,84.972,5.72497715]
[1771395762789,5.48678841,85.028,84.981,5.72497715]
[1771395764795,5.7344764,85.04,84.964,5.83224262]
[1771395765198,5.7344764,85.039,84.964,5.83224262]
[1771395765791,5.7344764,85.026,84.967,5.83224262]
[1771395767400,5.7344764,85.021,84.967,5.83224262]
[1771395767789,5.7344764,85.018,84.967,5.83224262]
[1771395768795,5.7344764,85.014,84.967,5.83224262]
[1771395769198,5.7344764,85.003,84.956,5.83224262]
[1771395770400,5.7344764,85.01,84.956,5.83224262]
[1771395771693,5.7344764,85.01,84.957,10.5993]
[1771395771900,5.7344764,85.01,84.954,174.16]
[1771395771901,5.7344764,85.01,84.958,5.83224262]
[1771395772796,5.7344764,85.01,84.96,5.83224262]
[1771395774396,5.7509797,85.008,84.96,5.83224262]
[1771395776502,5.7509797,85.006,84.96,5.83224262]
[1771395777802,5.7509797,85.002,84.96,5.83224262]
[1771395778601,5.7509797,84.998,84.96,5.83224262]
[1771395779704,5.7509797,84.996,84.96,5.83224262]
[1771395780708,5.7509797,84.996,84.949,5.89535075]
[1771395786511,5.7509797,84.996,84.951,5.89535075]
[1771395790216,5.7509797,84.99,84.923,5.89535075]
[1771395790516,5.7509797,84.988,84.9,5.89535075]
[1771395790720,5.7509797,84.986,84.9,5.89535075]
[1771395790919,5.7509797,84.984,84.9,5.89535075]
[1771395791124,5.7509797,84.982,84.9,5.89535075]
[1771395791322,5.7509797,84.982,84.894,74.1]
[1771395791323,5.7509797,84.982,84.902,5.89535075]
[1771395791717,5.7509797,84.96,84.911,5.89535075]
[1771395799926,5.7509797,84.96,84.901,79.0]
[1771395799927,5.7509797,84.96,84.913,5.57973699]
[1771395804430,5.7509797,84.96,84.915,5.57973699]
[1771395807531,5.7509797,84.96,84.918,5.57973699]
[1771395808328,5.7509797,84.96,84.92,5.57973699]
[1771395815433,7.7475126,84.96,84.92,5.57973699]
[1771395815638,5.89418121,84.959,84.92,5.57973699]
[1771395817438,10.5979,84.97,84.92,5.57973699]
[1771395817439,1.9965329,84.97,84.922,5.57973699]
[1771395817645,311.561192,84.977,84.931,5.57973699]
[1771395817942,5.89418121,84.976,84.931,5.57973699]
[1771395818842,5.89418121,84.976,84.934,5.57973699]
[1771395819940,5.89418121,84.976,84.938,5.57973699]
[1771395821433,5.89418121,84.976,84.899,21.91314826]
[1771395821434,10.5947,84.995,84.941,5.57973699]
[1771395821633,1.99555297,84.99,84.941,5.57973699]
[1771395821838,7.88973418,84.99,84.941,5.57973699]
[1771395822043,5.89418121,84.989,84.941,5.57973699]
[1771395822337,1.99555297,84.98,84.941,5.57973699]
[1771395822843,5.89418121,84.989,84.942,5.57973699]
[1771395823232,5.89418121,84.989,84.948,5.57973699]
[1771395823432,1.99555297,84.99,84.948,5.57973699]
[1771395824240,1.99555297,85.0,84.951,5.57973699]
[1771395824446,7.88973418,85.0,84.951,5.57973699]
[1771395824738,5.89418121,84.999,84.951,5.57973699]
[1771395825843,5.89418121,84.999,84.955,5.65970412]
[1771395827039,5.83465261,84.998,84.955,5.65970412]
[1771395827342,1.99555297,84.99,84.955,5.65970412]
[1771395829844,5.83465261,84.998,84.955,5.65970412]
[1771395832044,8.60595639,85.03,84.961,5.65970412]
[1771395832045,1.99555297,85.01,84.961,5.65970412]
[1771395833446,2.04743218,85.053,84.971,5.65970412]
[1771395833741,164.5756,85.115,85.001,5.65970412]
[1771395833742,1.99555297,85.04,85.001,5.65970412]
[1771395833936,5.83465261,85.029,84.981,5.65970412]
[1771395834737,5.83465261,85.029,84.988,5.6612078]
[1771395835037,7.60572571,85.04,84.991,5.6612078]
[1771395835748,5.61017274,85.04,85.004,5.6612078]
[1771395836635,5.61017274,85.04,85.005,10.5933]
[1771395836841,5.61017274,85.04,85.005,16.2545078]
[1771395837542,5.61017274,85.039,84.995,10.5946]
[1771395837750,5.61017274,85.029,84.989,5.6612078]
[1771395838643,5.61017274,85.029,84.99,10.5952]
[1771395838837,5.61017274,85.029,84.99,16.2564078]
[1771395840449,5.61017274,85.041,84.996,5.6612078]
[1771395841846,5.61017274,85.041,85.001,5.6612078]
[1771395842747,1.99555297,85.04,85.005,5.6612078]
[1771395844044,7.60572571,85.04,85.005,5.6612078]
[1771395844236,5.61017274,85.039,85.004,10.5934]
[1771395844950,5.61017274,85.074,85.028,5.6612078]
[1771395845247,5.61017274,85.074,85.031,5.6612078]
[1771395845648,5.61017274,85.074,85.037,5.6612078]
[1771395845839,1.99555297,85.08,85.037,5.6612078]